[Event "Live Chess"]
[Site "Chess.com"]
[Date "2024.06.01"]
[Round "-"]
[White "Silverback7829"]
[Black "educatedlad"]
[Result "0-1"]
[WhiteElo "957"]
[BlackElo "1723"]
[TimeControl "300"]
[EndTime "14:05:52 PDT"]
[Termination "educatedlad won by checkmate"]

1. d4 {[%clk 0:04:57.7]} 1... d5 {[%clk 0:04:59.9]} 2. Nf3 {[%clk 0:04:56.2]}
2... Nc6 {[%clk 0:04:59.8]} 3. Nc3 {[%clk 0:04:54.7]} 3... Nf6 {[%clk 0:04:59]}
4. e4 {[%clk 0:04:52.6]} 4... e6 {[%clk 0:04:58.9]} 5. exd5 {[%clk 0:04:50.1]}
5... exd5 {[%clk 0:04:56.9]} 6. Bf4 {[%clk 0:04:47.7]} 6... Bd6 {[%clk
0:04:56.2]} 7. Bxd6 {[%clk 0:04:45.7]} 7... Qxd6 {[%clk 0:04:56.1]} 8. Bb5
{[%clk 0:04:42.5]} 8... O-O {[%clk 0:04:54.9]} 9. Bxc6 {[%clk 0:04:40.4]} 9...
Qxc6 {[%clk 0:04:53.9]} 10. O-O {[%clk 0:04:38.1]} 10... Bg4 {[%clk 0:04:52.9]}
11. Ng5 {[%clk 0:04:33.8]} 11... Bxd1 {[%clk 0:04:50.8]} 12. Raxd1 {[%clk
0:04:29.5]} 12... h6 {[%clk 0:04:49.3]} 13. Nf3 {[%clk 0:04:19.1]} 13... Qd6
{[%clk 0:04:46.5]} 14. Rfe1 {[%clk 0:04:11.7]} 14... Ng4 {[%clk 0:04:45.5]} 15.
h3 {[%clk 0:04:04.8]} 15... Nxf2 {[%clk 0:04:42.2]} 16. Kxf2 {[%clk 0:04:01.6]}
16... Rfe8 {[%clk 0:04:42.1]} 17. Rxe8+ {[%clk 0:03:58.4]} 17... Rxe8 {[%clk
0:04:42]} 18. Re1 {[%clk 0:03:51.8]} 18... Rxe1 {[%clk 0:04:39.9]} 19. Nxe1
{[%clk 0:03:49.1]} 19... Qb4 {[%clk 0:04:39.8]} 20. a3 {[%clk 0:03:43.6]} 20...
Qxb2 {[%clk 0:04:38.5]} 21. Nd1 {[%clk 0:03:38.2]} 21... Qxd4+ {[%clk
0:04:37.1]} 22. Kg3 {[%clk 0:03:28]} 22... Qxd1 {[%clk 0:04:35.7]} 23. Nf3
{[%clk 0:03:23.9]} 23... Qxc2 {[%clk 0:04:34.2]} 24. h4 {[%clk 0:03:14.5]} 24...
Qc3 {[%clk 0:04:34.1]} 25. Kg4 {[%clk 0:03:09.9]} 25... Qxa3 {[%clk 0:04:32.9]}
26. Kg3 {[%clk 0:03:07.8]} 26... Qb4 {[%clk 0:04:32.8]} 27. Kf2 {[%clk
0:03:04.5]} 27... a6 {[%clk 0:04:31.5]} 28. Kg3 {[%clk 0:03:01.6]} 28... Qe4
{[%clk 0:04:30.4]} 29. Kh3 {[%clk 0:02:56.7]} 29... Qxf3+ {[%clk 0:04:28.6]} 30.
gxf3 {[%clk 0:02:54.3]} 30... a5 {[%clk 0:04:28.5]} 31. Kg3 {[%clk 0:02:42.8]}
31... a4 {[%clk 0:04:28.4]} 32. Kf2 {[%clk 0:02:41.8]} 32... a3 {[%clk
0:04:28.3]} 33. Kg3 {[%clk 0:02:24.1]} 33... a2 {[%clk 0:04:28.2]} 34. Kg4
{[%clk 0:02:17.4]} 34... a1=Q {[%clk 0:04:28.1]} 35. f4 {[%clk 0:02:11.4]} 35...
b5 {[%clk 0:04:28]} 36. f5 {[%clk 0:02:05.9]} 36... b4 {[%clk 0:04:27.9]} 37.
Kf4 {[%clk 0:02:01.4]} 37... Qf6 {[%clk 0:04:27.8]} 38. h5 {[%clk 0:01:58.7]}
38... Qxf5+ {[%clk 0:04:24.7]} 39. Kxf5 {[%clk 0:01:54.2]} 39... b3 {[%clk
0:04:24.6]} 40. Ke5 {[%clk 0:01:52.3]} 40... b2 {[%clk 0:04:24.5]} 41. Kxd5
{[%clk 0:01:51]} 41... b1=Q {[%clk 0:04:24.4]} 42. Kc6 {[%clk 0:01:47.9]} 42...
Qg6+ {[%clk 0:04:21.1]} 43. hxg6 {[%clk 0:01:42.6]} 43... fxg6 {[%clk 0:04:21]}
44. Kxc7 {[%clk 0:01:40]} 44... Kf7 {[%clk 0:04:20.3]} 45. Kd6 {[%clk
0:01:35.5]} 45... Kf6 {[%clk 0:04:19.6]} 46. Kd7 {[%clk 0:01:32.8]} 46... Kf5
{[%clk 0:04:19.1]} 47. Ke7 {[%clk 0:01:29.9]} 47... g5 {[%clk 0:04:19]} 48. Kf7
{[%clk 0:01:27.9]} 48... g4 {[%clk 0:04:18.9]} 49. Kxg7 {[%clk 0:01:27]} 49...
g3 {[%clk 0:04:18.8]} 50. Kxh6 {[%clk 0:01:26.1]} 50... g2 {[%clk 0:04:18.7]}
51. Kg7 {[%clk 0:01:22.8]} 51... g1=Q+ {[%clk 0:04:18.6]} 52. Kf7 {[%clk
0:01:20.9]} 52... Qg6+ {[%clk 0:04:16.5]} 53. Ke7 {[%clk 0:01:17.8]} 53... Qe6+
{[%clk 0:04:13.6]} 54. Kf8 {[%clk 0:01:15.8]} 54... Qd7 {[%clk 0:04:04.2]} 55.
Kg8 {[%clk 0:01:12]} 55... Kg6 {[%clk 0:04:03]} 56. Kf8 {[%clk 0:01:03.7]} 56...
Qf7# {[%clk 0:04:01.9]} 0-1

[Event "Live Chess"]
[Site "Chess.com"]
[Date "2024.06.01"]
[Round "-"]
[White "chessfiction"]
[Black "ProfPoisson"]
[Result "1-0"]
[WhiteElo "2375"]
[BlackElo "1284"]
[TimeControl "300"]
[EndTime "14:05:53 PDT"]
[Termination "chessfiction won by resignation"]

1. e4 {[%clk 0:04:56.6]} 1... e5 {[%clk 0:04:56.9]} 2. d4 {[%clk 0:04:56.5]}
2... exd4 {[%clk 0:04:54]} 3. c3 {[%clk 0:04:56.4]} 3... dxc3 {[%clk 0:04:51.9]}
4. Bc4 {[%clk 0:04:54]} 4... cxb2 {[%clk 0:04:50.7]} 5. Bxb2 {[%clk 0:04:52.3]}
5... d5 {[%clk 0:04:49.9]} 6. Bxd5 {[%clk 0:04:51.1]} 6... Nf6 {[%clk
0:04:49.2]} 7. Bxf6 {[%clk 0:04:42.2]} 7... Qxf6 {[%clk 0:04:45.7]} 8. Nd2
{[%clk 0:04:42.1]} 8... Bb4 {[%clk 0:04:40]} 9. Qa4+ {[%clk 0:04:36]} 9... c6
{[%clk 0:04:32.4]} 10. Rd1 {[%clk 0:04:17.7]} 10... Bxd2+ {[%clk 0:04:28.4]} 11.
Rxd2 {[%clk 0:04:15.8]} 11... O-O {[%clk 0:04:26.5]} 12. Bb3 {[%clk 0:04:13.2]}
12... Qa1+ {[%clk 0:04:16.9]} 13. Rd1 {[%clk 0:04:11.2]} 13... Qc3+ {[%clk
0:04:15.5]} 14. Kf1 {[%clk 0:04:10.3]} 14... Bg4 {[%clk 0:04:02.7]} 15. Ne2
{[%clk 0:04:04.8]} 15... Bxe2+ {[%clk 0:04:00.5]} 16. Kxe2 {[%clk 0:04:04.7]}
16... Na6 {[%clk 0:03:49.5]} 17. Qc4 {[%clk 0:03:52.6]} 17... Qxc4+ {[%clk
0:03:44]} 18. Bxc4 {[%clk 0:03:52.5]} 18... Nc5 {[%clk 0:03:41.8]} 19. Ke3
{[%clk 0:03:47.3]} 19... Rfe8 {[%clk 0:03:38.4]} 20. f3 {[%clk 0:03:46]} 20...
b5 {[%clk 0:03:35.1]} 21. Be2 {[%clk 0:03:34.2]} 21... f5 {[%clk 0:03:28.4]} 22.
Rd4 {[%clk 0:03:23.3]} 22... fxe4 {[%clk 0:03:21.7]} 23. fxe4 {[%clk 0:03:23.2]}
23... Ne6 {[%clk 0:03:07.7]} 24. Rd6 {[%clk 0:03:21.7]} 24... Rac8 {[%clk
0:03:00.7]} 25. Rc1 {[%clk 0:03:19.7]} 25... c5 {[%clk 0:02:45]} 26. Bxb5 {[%clk
0:03:16.5]} 26... Re7 {[%clk 0:02:41.4]} 27. Bd7 {[%clk 0:03:11.6]} 27... Rd8
{[%clk 0:02:33.5]} 28. Bxe6+ {[%clk 0:03:09.6]} 28... Rxe6 {[%clk 0:02:26]} 29.
Rxd8+ {[%clk 0:03:09.5]} 29... Kf7 {[%clk 0:02:22.9]} 30. Rxc5 {[%clk
0:03:08.5]} 30... Kg6 {[%clk 0:02:09.1]} 31. Rc7 {[%clk 0:03:07]} 31... a5
{[%clk 0:02:03.7]} 32. Rdd7 {[%clk 0:03:06.9]} 32... Rb6 {[%clk 0:01:54.4]} 33.
Rxg7+ {[%clk 0:03:05]} 33... Kf6 {[%clk 0:01:52.1]} 34. Rxh7 {[%clk 0:03:00.7]}
34... Rb2 {[%clk 0:01:50.3]} 35. Rc6+ {[%clk 0:02:54]} 35... Kg5 {[%clk
0:01:45.2]} 36. Ra7 {[%clk 0:02:51.4]} 36... Rxa2 {[%clk 0:01:40.2]} 37. Rc5+
{[%clk 0:02:49.9]} 37... Kf6 {[%clk 0:01:37]} 38. Ra6+ {[%clk 0:02:49]} 38...
Ke7 {[%clk 0:01:34.8]} 39. Rc7+ {[%clk 0:02:48.9]} 39... Kd8 {[%clk 0:01:33.3]}
40. Rh7 {[%clk 0:02:48.8]} 1-0

[Event "Live Chess"]
[Site "Chess.com"]
[Date "2024.06.01"]
[Round "-"]
[White "JohanKjeldahl"]
[Black "Cimon"]
[Result "1-0"]
[WhiteElo "1869"]
[BlackElo "1826"]
[TimeControl "300"]
[EndTime "14:05:55 PDT"]
[Termination "JohanKjeldahl won by checkmate"]

1. c4 {[%clk 0:04:58.2]} 1... Nf6 {[%clk 0:04:55.1]} 2. Nc3 {[%clk 0:04:57]}
2... e6 {[%clk 0:04:52.9]} 3. e4 {[%clk 0:04:55.9]} 3... d6 {[%clk 0:04:49.6]}
4. d4 {[%clk 0:04:54.1]} 4... Be7 {[%clk 0:04:42.8]} 5. Nf3 {[%clk 0:04:52.6]}
5... c5 {[%clk 0:04:36.1]} 6. d5 {[%clk 0:04:50.2]} 6... e5 {[%clk 0:04:31]} 7.
h3 {[%clk 0:04:47.3]} 7... O-O {[%clk 0:04:26.7]} 8. Be3 {[%clk 0:04:46]} 8...
a6 {[%clk 0:04:16.6]} 9. a4 {[%clk 0:04:43.7]} 9... Ne8 {[%clk 0:04:07.4]} 10.
g4 {[%clk 0:04:41]} 10... Nd7 {[%clk 0:03:40.2]} 11. Qd2 {[%clk 0:04:33.7]}
11... Ndf6 {[%clk 0:03:26]} 12. Be2 {[%clk 0:04:22.6]} 12... Bd7 {[%clk
0:03:21.2]} 13. g5 {[%clk 0:04:16.8]} 13... Nh5 {[%clk 0:03:15.2]} 14. Nxe5
{[%clk 0:04:08.1]} 14... dxe5 {[%clk 0:03:09.7]} 15. Bxh5 {[%clk 0:04:05.8]}
15... b5 {[%clk 0:02:58.5]} 16. axb5 {[%clk 0:03:59.7]} 16... axb5 {[%clk
0:02:57.2]} 17. Rxa8 {[%clk 0:03:56.8]} 17... Qxa8 {[%clk 0:02:55.6]} 18. Bf3
{[%clk 0:03:52.5]} 18... b4 {[%clk 0:02:38]} 19. Nb5 {[%clk 0:03:32]} 19... Bxb5
{[%clk 0:02:28]} 20. cxb5 {[%clk 0:03:30.9]} 20... Qa5 {[%clk 0:02:23.8]} 21.
Be2 {[%clk 0:03:25.2]} 21... Nd6 {[%clk 0:02:21.4]} 22. O-O {[%clk 0:03:08.7]}
22... Nxe4 {[%clk 0:02:17.8]} 23. Qc2 {[%clk 0:02:51.6]} 23... Nxg5 {[%clk
0:02:02]} 24. Bxg5 {[%clk 0:02:50.1]} 24... Bxg5 {[%clk 0:02:00.8]} 25. Qxc5
{[%clk 0:02:48.6]} 25... Bf4 {[%clk 0:01:16.3]} 26. d6 {[%clk 0:02:42.9]} 26...
Qd8 {[%clk 0:01:13.5]} 27. Qxb4 {[%clk 0:02:26]} 27... Qg5+ {[%clk 0:01:11.5]}
28. Kh1 {[%clk 0:02:22.2]} 28... Qh4 {[%clk 0:00:54.9]} 29. Qc3 {[%clk
0:02:12.6]} 29... Rd8 {[%clk 0:00:48.2]} 30. Rg1 {[%clk 0:02:09.1]} 30... h6
{[%clk 0:00:43.8]} 31. Qf3 {[%clk 0:01:42.6]} 31... Rxd6 {[%clk 0:00:40]} 32. b3
{[%clk 0:01:32.8]} 32... Qd8 {[%clk 0:00:30.2]} 33. Bc4 {[%clk 0:01:24.6]} 33...
Qe7 {[%clk 0:00:21.2]} 34. Qg4 {[%clk 0:01:21.5]} 34... g6 {[%clk 0:00:19.2]}
35. h4 {[%clk 0:01:07.5]} 35... Kh7 {[%clk 0:00:17.8]} 36. h5 {[%clk 0:01:03.5]}
36... g5 {[%clk 0:00:16.2]} 37. Qf5+ {[%clk 0:00:58.5]} 37... Kg7 {[%clk
0:00:15]} 38. Bd3 {[%clk 0:00:54.3]} 38... Rf6 {[%clk 0:00:12.9]} 39. Qh7+
{[%clk 0:00:52.7]} 39... Kf8 {[%clk 0:00:11.6]} 40. Qh8# {[%clk 0:00:51.7]} 1-0

[Event "Live Chess"]
[Site "Chess.com"]
[Date "2024.06.01"]
[Round "-"]
[White "Brooms1989"]
[Black "MaksymYurii"]
[Result "1-0"]
[WhiteElo "1125"]
[BlackElo "937"]
[TimeControl "300"]
[EndTime "14:06:01 PDT"]
[Termination "Brooms1989 won by checkmate"]

1. e4 {[%clk 0:04:56.9]} 1... e5 {[%clk 0:04:58.5]} 2. Nc3 {[%clk 0:04:55.5]}
2... Nc6 {[%clk 0:04:56.3]} 3. Bc4 {[%clk 0:04:54.3]} 3... Nf6 {[%clk
0:04:53.8]} 4. d3 {[%clk 0:04:50.9]} 4... Bc5 {[%clk 0:04:52.7]} 5. f4 {[%clk
0:04:45.2]} 5... exf4 {[%clk 0:04:47.7]} 6. Bxf4 {[%clk 0:04:45.1]} 6... O-O
{[%clk 0:04:44.6]} 7. Nf3 {[%clk 0:04:41.9]} 7... Ng4 {[%clk 0:04:33.3]} 8. d4
{[%clk 0:04:29.1]} 8... Bd6 {[%clk 0:04:21.2]} 9. Bxd6 {[%clk 0:04:23.2]} 9...
cxd6 {[%clk 0:04:19.1]} 10. Qd2 {[%clk 0:04:01]} 10... Re8 {[%clk 0:03:52.9]}
11. O-O {[%clk 0:03:54.9]} 11... Nce5 {[%clk 0:03:43]} 12. Nxe5 {[%clk
0:03:45.1]} 12... dxe5 {[%clk 0:03:35.5]} 13. Bxf7+ {[%clk 0:03:40.5]} 13... Kh8
{[%clk 0:03:30.4]} 14. Bxe8 {[%clk 0:03:35.1]} 14... Qxe8 {[%clk 0:03:30.3]} 15.
dxe5 {[%clk 0:03:32.7]} 15... Nxe5 {[%clk 0:03:25.6]} 16. Rf3 {[%clk 0:03:19.6]}
16... d5 {[%clk 0:03:18.9]} 17. Raf1 {[%clk 0:03:15.2]} 17... Ng6 {[%clk
0:03:12.8]} 18. exd5 {[%clk 0:03:08.4]} 18... Bg4 {[%clk 0:03:09.9]} 19. Rf7
{[%clk 0:02:57.2]} 19... Qd8 {[%clk 0:02:50.3]} 20. Qd4 {[%clk 0:02:49.1]} 20...
Qb6 {[%clk 0:02:45.4]} 21. Qxb6 {[%clk 0:02:47]} 21... axb6 {[%clk 0:02:42.5]}
22. Rxb7 {[%clk 0:02:45]} 22... h6 {[%clk 0:02:30.3]} 23. Rxb6 {[%clk
0:02:39.5]} 23... Ne5 {[%clk 0:02:26.1]} 24. h3 {[%clk 0:02:31.6]} 24... Bh5
{[%clk 0:02:20.2]} 25. g4 {[%clk 0:02:29.4]} 25... Bg6 {[%clk 0:02:15.2]} 26.
Rf2 {[%clk 0:02:23.9]} 26... Nc4 {[%clk 0:02:13.1]} 27. Rxg6 {[%clk 0:02:16.2]}
27... Nxb2 {[%clk 0:02:08.9]} 28. Rf7 {[%clk 0:02:12.1]} 28... Rg8 {[%clk
0:02:05.6]} 29. d6 {[%clk 0:02:08.6]} 29... Nc4 {[%clk 0:02:02]} 30. d7 {[%clk
0:02:07.6]} 30... Ne5 {[%clk 0:01:59.4]} 31. Rfxg7 {[%clk 0:02:04.2]} 31... Nxg6
{[%clk 0:01:55.5]} 32. Rxg6 {[%clk 0:02:02.1]} 32... Rd8 {[%clk 0:01:53.8]} 33.
Rxh6+ {[%clk 0:01:56.7]} 33... Kg7 {[%clk 0:01:52.5]} 34. Rd6 {[%clk 0:01:55.6]}
34... Kf7 {[%clk 0:01:51.3]} 35. Ne4 {[%clk 0:01:52.5]} 35... Ke7 {[%clk
0:01:50.3]} 36. h4 {[%clk 0:01:50.3]} 36... Rxd7 {[%clk 0:01:47.5]} 37. Rxd7+
{[%clk 0:01:48.6]} 37... Kxd7 {[%clk 0:01:46.9]} 38. g5 {[%clk 0:01:47.8]} 38...
Ke7 {[%clk 0:01:46.2]} 39. a4 {[%clk 0:01:44.4]} 39... Kf7 {[%clk 0:01:45.1]}
40. a5 {[%clk 0:01:43]} 40... Kg6 {[%clk 0:01:44.5]} 41. a6 {[%clk 0:01:42.8]}
41... Kh5 {[%clk 0:01:43.1]} 42. a7 {[%clk 0:01:42.7]} 42... Kg4 {[%clk
0:01:38.2]} 43. a8=Q {[%clk 0:01:42.6]} 43... Kh5 {[%clk 0:01:36.7]} 44. Qe8+
{[%clk 0:01:40.6]} 44... Kg4 {[%clk 0:01:35.2]} 45. Qe6+ {[%clk 0:01:38.5]}
45... Kh5 {[%clk 0:01:34.2]} 46. Nf6+ {[%clk 0:01:35.3]} 46... Kxh4 {[%clk
0:01:30.9]} 47. c4 {[%clk 0:01:32.6]} 47... Kg3 {[%clk 0:01:27.2]} 48. c5 {[%clk
0:01:31.9]} 48... Kf3 {[%clk 0:01:25.9]} 49. c6 {[%clk 0:01:31.8]} 49... Kg3
{[%clk 0:01:25.3]} 50. c7 {[%clk 0:01:31.7]} 50... Kf4 {[%clk 0:01:24.8]} 51.
Qc4+ {[%clk 0:01:27.2]} 51... Kf5 {[%clk 0:01:23.2]} 52. c8=Q+ {[%clk 0:01:26]}
52... Kg6 {[%clk 0:01:22]} 53. Qe8+ {[%clk 0:01:22.8]} 53... Kf5 {[%clk
0:01:19.6]} 54. Qce4+ {[%clk 0:01:17.7]} 54... Kxg5 {[%clk 0:01:15.3]} 55. Qg8+
{[%clk 0:01:16.4]} 55... Kxf6 {[%clk 0:01:11.6]} 56. Qf8+ {[%clk 0:01:15.3]}
56... Kg5 {[%clk 0:01:10.6]} 57. Qg2+ {[%clk 0:01:15.2]} 57... Kh4 {[%clk
0:01:08.9]} 58. Qh8# {[%clk 0:01:15.1]} 1-0

[Event "Live Chess"]
[Site "Chess.com"]
[Date "2024.06.01"]
[Round "-"]
[White "Cruiseylee78"]
[Black "JanMur7"]
[Result "1-0"]
[WhiteElo "1697"]
[BlackElo "2308"]
[TimeControl "300"]
[EndTime "14:06:18 PDT"]
[Termination "Cruiseylee78 won by resignation"]

1. d4 {[%clk 0:04:59]} 1... Nf6 {[%clk 0:04:58.1]} 2. Bf4 {[%clk 0:04:54.3]}
2... c6 {[%clk 0:04:56.4]} 3. e3 {[%clk 0:04:53.8]} 3... Qb6 {[%clk 0:04:50.7]}
4. b3 {[%clk 0:04:50.6]} 4... g6 {[%clk 0:04:49]} 5. Bd3 {[%clk 0:04:49.3]} 5...
Nh5 {[%clk 0:04:33.2]} 6. Bg3 {[%clk 0:04:48.1]} 6... Nxg3 {[%clk 0:04:31.6]} 7.
hxg3 {[%clk 0:04:48]} 7... d6 {[%clk 0:04:30.9]} 8. Nd2 {[%clk 0:04:45.5]} 8...
Bg7 {[%clk 0:04:28.8]} 9. c3 {[%clk 0:04:44.3]} 9... O-O {[%clk 0:04:25.6]} 10.
Ngf3 {[%clk 0:04:43]} 10... Bg4 {[%clk 0:04:23.3]} 11. Qc2 {[%clk 0:04:41.3]}
11... Nd7 {[%clk 0:04:20.8]} 12. Ng5 {[%clk 0:04:38.4]} 12... h6 {[%clk
0:04:14]} 13. Ngf3 {[%clk 0:04:37.4]} 13... e5 {[%clk 0:04:03.1]} 14. Rh4 {[%clk
0:04:20.4]} 14... h5 {[%clk 0:03:58.3]} 15. e4 {[%clk 0:03:46.5]} 15... exd4
{[%clk 0:03:26.1]} 16. Nc4 {[%clk 0:03:14.5]} 16... Qc5 {[%clk 0:03:21.6]} 17.
b4 {[%clk 0:03:06.6]} 17... Qb5 {[%clk 0:03:15.1]} 18. a4 {[%clk 0:03:03.3]}
18... Qa6 {[%clk 0:03:10.4]} 19. Nxd4 {[%clk 0:02:59.2]} 19... b5 {[%clk
0:02:58.8]} 20. Ne3 {[%clk 0:02:55.6]} 20... Be6 {[%clk 0:02:46.1]} 21. Nxe6
{[%clk 0:02:51.6]} 21... fxe6 {[%clk 0:02:46]} 22. e5 {[%clk 0:02:41.5]} 22...
Nxe5 {[%clk 0:02:43.5]} 23. Bxg6 {[%clk 0:02:38.3]} 23... Rf6 {[%clk 0:02:25.9]}
24. Bxh5 {[%clk 0:02:34.2]} 24... Raf8 {[%clk 0:02:09.7]} 25. f4 {[%clk
0:02:18.1]} 25... Nc4 {[%clk 0:02:02.4]} 26. Nxc4 {[%clk 0:02:15]} 26... bxc4
{[%clk 0:02:02.3]} 27. O-O-O {[%clk 0:02:09.1]} 27... d5 {[%clk 0:01:38.2]} 28.
Bf3 {[%clk 0:01:51.1]} 28... c5 {[%clk 0:01:22.7]} 29. Qh7+ {[%clk 0:01:28.5]}
29... Kf7 {[%clk 0:01:16.2]} 30. Bh5+ {[%clk 0:01:28.4]} 1-0

[Event "Live Chess"]
[Site "Chess.com"]
[Date "2024.06.01"]
[Round "-"]
[White "Bradfield133"]
[Black "kingside_rook"]
[Result "0-1"]
[WhiteElo "1895"]
[BlackElo "1995"]
[TimeControl "300"]
[EndTime "14:06:27 PDT"]
[Termination "kingside_rook won on time"]

1. c4 {[%clk 0:04:57.4]} 1... Nf6 {[%clk 0:04:58.8]} 2. g3 {[%clk 0:04:56.5]}
2... g6 {[%clk 0:04:58.4]} 3. Bg2 {[%clk 0:04:55.6]} 3... Bg7 {[%clk 0:04:58.3]}
4. Nc3 {[%clk 0:04:54.6]} 4... O-O {[%clk 0:04:58.2]} 5. e4 {[%clk 0:04:53.2]}
5... d6 {[%clk 0:04:57.6]} 6. Nge2 {[%clk 0:04:52.2]} 6... c5 {[%clk 0:04:55.3]}
7. O-O {[%clk 0:04:48.2]} 7... Nc6 {[%clk 0:04:54.7]} 8. a3 {[%clk 0:04:45.6]}
8... e5 {[%clk 0:04:50.8]} 9. Rb1 {[%clk 0:04:44]} 9... a5 {[%clk 0:04:49.2]}
10. d3 {[%clk 0:04:40.2]} 10... Ne8 {[%clk 0:04:47.3]} 11. f4 {[%clk 0:04:33]}
11... Nc7 {[%clk 0:04:46.4]} 12. f5 {[%clk 0:04:29.9]} 12... Nd4 {[%clk
0:04:42.5]} 13. g4 {[%clk 0:04:17.8]} 13... b5 {[%clk 0:04:34.1]} 14. Nd5 {[%clk
0:04:01.9]} 14... Nxd5 {[%clk 0:04:32.8]} 15. cxd5 {[%clk 0:03:59.4]} 15... Qh4
{[%clk 0:04:28.3]} 16. h3 {[%clk 0:03:35.3]} 16... Bh6 {[%clk 0:04:14.8]} 17. f6
{[%clk 0:03:02.4]} 17... Bxc1 {[%clk 0:04:09.7]} 18. Rxc1 {[%clk 0:03:00]} 18...
Nxe2+ {[%clk 0:04:07.2]} 19. Qxe2 {[%clk 0:02:58.2]} 19... b4 {[%clk 0:04:06.8]}
20. a4 {[%clk 0:02:46.2]} 20... Qg5 {[%clk 0:03:51.4]} 21. b3 {[%clk 0:02:38.8]}
21... h5 {[%clk 0:03:48.9]} 22. gxh5 {[%clk 0:02:27.2]} 22... Bxh3 {[%clk
0:03:46.6]} 23. Rc2 {[%clk 0:02:05.4]} 23... gxh5 {[%clk 0:03:39.3]} 24. Kh2
{[%clk 0:01:37]} 24... Bg4 {[%clk 0:03:38]} 25. Qf2 {[%clk 0:00:55.5]} 25... Kh7
{[%clk 0:03:32.1]} 26. Bh3 {[%clk 0:00:32.4]} 26... Rg8 {[%clk 0:03:32]} 27. Rg1
{[%clk 0:00:19.6]} 27... Qh6 {[%clk 0:03:28.6]} 28. Qf1 {[%clk 0:00:05.1]} 28...
Bxh3 {[%clk 0:03:27.2]} 29. Qxh3 {[%clk 0:00:03.4]} 29... Qf4+ {[%clk
0:03:26.2]} 0-1

[Event "Live Chess"]
[Site "Chess.com"]
[Date "2024.06.01"]
[Round "-"]
[White "Zhevzh1k7"]
[Black "McFim"]
[Result "0-1"]
[WhiteElo "1105"]
[BlackElo "1597"]
[TimeControl "300"]
[EndTime "14:06:27 PDT"]
[Termination "McFim won by resignation"]

1. e4 {[%clk 0:04:57.7]} 1... c6 {[%clk 0:04:58.3]} 2. d4 {[%clk 0:04:51.9]}
2... d5 {[%clk 0:04:57.7]} 3. f3 {[%clk 0:04:48.2]} 3... dxe4 {[%clk 0:04:53.8]}
4. fxe4 {[%clk 0:04:46.3]} 4... e5 {[%clk 0:04:53.1]} 5. Nf3 {[%clk 0:04:45.7]}
5... Bg4 {[%clk 0:04:50.6]} 6. c3 {[%clk 0:04:33.9]} 6... exd4 {[%clk
0:04:34.5]} 7. cxd4 {[%clk 0:04:30]} 7... Nf6 {[%clk 0:04:29.9]} 8. Nc3 {[%clk
0:04:25.5]} 8... Bb4 {[%clk 0:04:20.1]} 9. e5 {[%clk 0:04:05.3]} 9... Nd5 {[%clk
0:04:13.1]} 10. Bd2 {[%clk 0:04:00]} 10... O-O {[%clk 0:04:06.3]} 11. Nxd5
{[%clk 0:03:57]} 11... Bxd2+ {[%clk 0:04:04.1]} 12. Qxd2 {[%clk 0:03:55.6]}
12... Qxd5 {[%clk 0:03:56.1]} 13. Be2 {[%clk 0:03:54]} 13... Nd7 {[%clk
0:03:43.4]} 14. O-O {[%clk 0:03:48.1]} 14... Rad8 {[%clk 0:03:29.3]} 15. Ne1
{[%clk 0:03:27.1]} 15... Bxe2 {[%clk 0:03:26.6]} 16. Qxe2 {[%clk 0:03:25.9]}
16... Qxd4+ {[%clk 0:03:25.2]} 17. Kh1 {[%clk 0:03:18.7]} 17... Qxe5 {[%clk
0:03:23.3]} 18. Qxe5 {[%clk 0:03:16.6]} 18... Nxe5 {[%clk 0:03:21.7]} 19. Nf3
{[%clk 0:03:13.5]} 19... Nxf3 {[%clk 0:03:18.7]} 20. Rxf3 {[%clk 0:03:12.3]}
20... Rd2 {[%clk 0:03:17.5]} 21. b3 {[%clk 0:03:05.8]} 21... Re8 {[%clk
0:03:11.7]} 22. h3 {[%clk 0:03:02.5]} 22... Ree2 {[%clk 0:03:09.3]} 23. Rg3
{[%clk 0:02:43.4]} 23... Rxa2 {[%clk 0:03:00.2]} 24. Rxa2 {[%clk 0:02:41.8]}
24... Rxa2 {[%clk 0:02:58.2]} 25. Rd3 {[%clk 0:02:35.5]} 25... g6 {[%clk
0:02:54.9]} 26. Rd7 {[%clk 0:02:34]} 26... b6 {[%clk 0:02:53.2]} 27. Rc7 {[%clk
0:02:30.5]} 27... c5 {[%clk 0:02:51.6]} 28. Rb7 {[%clk 0:02:24.5]} 28... Ra3
{[%clk 0:02:48.1]} 29. Rb8+ {[%clk 0:02:22.8]} 29... Kg7 {[%clk 0:02:46.5]} 30.
b4 {[%clk 0:02:19.8]} 30... cxb4 {[%clk 0:02:44.7]} 0-1

[Event "Live Chess"]
[Site "Chess.com"]
[Date "2024.06.01"]
[Round "-"]
[White "bonantagulo"]
[Black "MagnersCarlsberg2870"]
[Result "1-0"]
[WhiteElo "2081"]
[BlackElo "1774"]
[TimeControl "300"]
[EndTime "14:06:39 PDT"]
[Termination "bonantagulo won by checkmate"]

1. d4 {[%clk 0:04:58.3]} 1... Nf6 {[%clk 0:04:53.8]} 2. c4 {[%clk 0:04:52.9]}
2... e5 {[%clk 0:04:51.8]} 3. dxe5 {[%clk 0:04:52.1]} 3... Ne4 {[%clk 0:04:51]}
4. Nf3 {[%clk 0:04:52]} 4... d6 {[%clk 0:04:48.8]} 5. exd6 {[%clk 0:04:49.8]}
5... Bxd6 {[%clk 0:04:47.8]} 6. Nbd2 {[%clk 0:04:38.3]} 6... Bb4 {[%clk
0:04:40.2]} 7. g3 {[%clk 0:04:31.5]} 7... Bg4 {[%clk 0:04:35.2]} 8. Bg2 {[%clk
0:04:28.6]} 8... Nc6 {[%clk 0:04:31.6]} 9. h3 {[%clk 0:04:25.5]} 9... Be6 {[%clk
0:04:26.7]} 10. O-O {[%clk 0:04:22.7]} 10... Bxd2 {[%clk 0:04:21.8]} 11. Bxd2
{[%clk 0:04:22.6]} 11... Bxc4 {[%clk 0:04:20.1]} 12. Qc2 {[%clk 0:04:14]} 12...
Nxd2 {[%clk 0:04:15.2]} 13. Nxd2 {[%clk 0:04:13.4]} 13... Bd5 {[%clk 0:04:13.1]}
14. e4 {[%clk 0:04:09.3]} 14... Nd4 {[%clk 0:04:02.4]} 15. Qd3 {[%clk
0:03:47.6]} 15... Bc6 {[%clk 0:03:55]} 16. Nc4 {[%clk 0:03:27.4]} 16... O-O
{[%clk 0:03:45.3]} 17. Rad1 {[%clk 0:03:26.8]} 17... Ne6 {[%clk 0:03:35.5]} 18.
Na5 {[%clk 0:03:20.1]} 18... Qxd3 {[%clk 0:03:31.8]} 19. Rxd3 {[%clk 0:03:20]}
19... Bb5 {[%clk 0:03:31.1]} 20. Rfd1 {[%clk 0:03:15.6]} 20... Bxd3 {[%clk
0:03:29.6]} 21. Rxd3 {[%clk 0:03:15.5]} 21... Rad8 {[%clk 0:03:28.2]} 22. Rc3
{[%clk 0:03:10]} 22... b6 {[%clk 0:03:26.2]} 23. Nc6 {[%clk 0:03:09]} 23... Rd1+
{[%clk 0:03:24.7]} 24. Kh2 {[%clk 0:03:08]} 24... a5 {[%clk 0:03:13.7]} 25. Rc2
{[%clk 0:03:03.9]} 25... Nc5 {[%clk 0:02:57.9]} 26. Ne7+ {[%clk 0:02:58.4]}
26... Kh8 {[%clk 0:02:53.9]} 27. Nd5 {[%clk 0:02:58.3]} 27... Ne6 {[%clk
0:02:44.2]} 28. f4 {[%clk 0:02:54.2]} 28... Nd4 {[%clk 0:02:31.5]} 29. Rxc7
{[%clk 0:02:40.9]} 29... Rd2 {[%clk 0:02:28.9]} 30. h4 {[%clk 0:02:33.6]} 30...
Rxb2 {[%clk 0:02:23.2]} 31. a4 {[%clk 0:02:32.8]} 31... b5 {[%clk 0:02:17.5]}
32. axb5 {[%clk 0:02:29.8]} 32... Rxb5 {[%clk 0:02:14.4]} 33. Ra7 {[%clk
0:02:24.5]} 33... Nb3 {[%clk 0:02:07]} 34. h5 {[%clk 0:02:10.2]} 34... h6 {[%clk
0:02:00.8]} 35. Bh3 {[%clk 0:02:04.8]} 35... f5 {[%clk 0:01:53.4]} 36. Ne7
{[%clk 0:01:48.6]} 36... Re8 {[%clk 0:01:43]} 37. Ng6+ {[%clk 0:01:45.2]} 37...
Kh7 {[%clk 0:01:39.9]} 38. Bxf5 {[%clk 0:01:44.5]} 38... Rxf5 {[%clk 0:01:37.5]}
39. exf5 {[%clk 0:01:44.4]} 39... Nd4 {[%clk 0:01:29.1]} 40. f6 {[%clk
0:01:36.2]} 40... Re2+ {[%clk 0:01:12.8]} 41. Kh3 {[%clk 0:01:33.4]} 41... Nf3
{[%clk 0:00:43.9]} 42. Rxg7# {[%clk 0:01:28.6]} 1-0